bitfinex-derivatives/quotes_SOLF0:USTF0_20260304
["timestamp","ask_amount","ask_price","bid_price","bid_amount"]
[1772614553513,24.27229935,89.38,89.307,20.76018166]
[1772614553808,19.9634926,89.38,89.309,20.76018166]
[1772614554014,10.067,89.392,89.322,20.76018166]
[1772614554315,10.067,89.392,89.324,20.76018166]
[1772614554516,10.067,89.392,89.326,20.76018166]
[1772614554711,50.0,89.4,89.34,4.30880675]
[1772614556016,60.066,89.4,89.34,20.76018166]
[1772614556216,60.066,89.4,89.341,8.27931701]
[1772614556418,50.0,89.4,89.343,20.76018166]
[1772614556612,50.0,89.4,89.344,8.27931701]
[1772614556917,50.0,89.4,89.345,8.27931701]
[1772614557115,50.0,89.4,89.347,20.76018166]
[1772614557309,50.0,89.4,89.349,20.76018166]
[1772614557509,50.0,89.4,89.351,20.76018166]
[1772614557718,50.0,89.4,89.353,20.76018166]
[1772614558014,19.9634926,89.441,89.36,4.30880675]
[1772614558319,22.60326542,89.43,89.361,8.27928286]
[1772614558512,22.60326542,89.43,89.36,10.00751037]
[1772614558513,22.60326542,89.43,89.362,8.27928286]
[1772614558818,22.60326542,89.43,89.363,8.27928286]
[1772614559013,22.60326542,89.43,89.364,8.27928286]
[1772614559325,26.90646848,89.45,89.37,4.30880675]
[1772614559518,26.90646848,89.45,89.371,8.27928286]
[1772614559714,26.90646848,89.45,89.372,8.27928286]
[1772614560019,26.90646848,89.45,89.373,8.27928286]
[1772614560221,10.062,89.437,89.374,8.27928286]
[1772614560420,22.59766173,89.45,89.378,10.00751037]
[1772614560611,22.59766173,89.45,89.379,8.27928286]
[1772614560814,22.80011956,89.471,89.384,10.00751037]
[1772614561115,22.80011956,89.471,89.39,4.30880675]
[1772614561320,22.80011956,89.471,89.391,8.27928286]
[1772614561518,22.7951882,89.468,89.392,8.27928286]
[1772614561718,22.7951882,89.468,89.393,8.27928286]
[1772614561913,22.7951882,89.468,89.394,8.27928286]
[1772614562118,10.06,89.459,89.395,8.27928286]
[1772614562315,22.7951882,89.468,89.396,8.27928286]
[1772614562520,10.06,89.46,89.397,8.27928286]
[1772614562714,22.7951882,89.468,89.398,8.27928286]
[1772614562920,22.7951882,89.468,89.399,8.27928286]
[1772614563115,22.72104826,89.444,89.375,10.00751037]
[1772614563317,22.72104826,89.444,89.36,4.30880675]
[1772614563511,22.72104826,89.444,89.304,26.86729065]
[1772614563512,22.72104826,89.439,89.357,10.00751037]
[1772614563717,22.72104826,89.439,89.35,14.31631712]
[1772614563918,22.72104826,89.439,89.359,10.00751037]
[1772614564221,22.72104826,89.439,89.355,10.00751037]
[1772614564527,22.71529516,89.429,89.33,4.30880675]
[1772614564823,22.71529516,89.429,89.35,4.30880675]
[1772614565214,27.01924014,89.45,89.35,4.30880675]
[1772614565413,10.064,89.419,89.35,4.30880675]
[1772614565617,22.71043339,89.418,89.35,4.30880675]
[1772614566522,22.71043339,89.418,89.33,4.30880675]
[1772614566722,22.59894954,89.409,89.33,4.30880675]
[1772614566916,10.067,89.397,89.33,4.30880675]
[1772614567116,22.59894954,89.409,89.33,4.30880675]
[1772614567325,22.59894954,89.409,89.35,4.30880675]
[1772614567525,22.59395082,89.403,89.33,4.30880675]
[1772614567819,22.59395082,89.403,89.3,4.30880675]
[1772614568020,22.59395082,89.403,89.34,4.30880675]
[1772614568318,0.02108003,89.41,89.34,4.30880675]
[1772614568620,0.02108003,89.41,89.36,4.30880675]
[1772614568923,0.02108003,89.41,89.34,4.30880675]
[1772614569320,0.02108003,89.41,89.36,4.30880675]
[1772614569821,0.02108003,89.41,89.34,4.30880675]
[1772614570017,32.65738409,89.41,89.34,4.30880675]
[1772614570421,10.08608003,89.41,89.34,4.30880675]
[1772614570623,0.02108003,89.41,89.36,4.30880675]
[1772614571918,10.067,89.397,89.319,10.075]
[1772614572125,22.51863959,89.397,89.33,4.30880675]
[1772614573124,4.32988678,89.41,89.33,4.30880675]
[1772614573125,22.50497376,89.409,89.33,4.30880675]
[1772614573626,10.067,89.392,89.33,4.30880675]
[1772614573826,22.50497376,89.409,89.33,4.30880675]
[1772614574225,10.067,89.393,89.33,4.30880675]
[1772614574524,10.067,89.393,89.34,4.29234204]
[1772614574918,22.50497376,89.409,89.34,4.29234204]
[1772614574919,10.066,89.403,89.34,4.29234204]
[1772614575319,22.50497376,89.409,89.341,1.00892716]
[1772614575519,22.50497376,89.409,89.32,4.29234204]
[1772614575717,22.50497376,89.409,89.32,14.36734204]
[1772614575922,22.50497376,89.409,89.321,1.10314085]
[1772614576326,21.8677194,89.386,89.321,1.10314085]
[1772614577720,21.8677194,89.386,89.322,1.35586133]
[1772614577925,21.8677194,89.386,89.31,4.29234204]
[1772614578224,10.067,89.391,89.33,5.79449596]
[1772614578424,21.8176397,89.406,89.33,5.79449596]
[1772614578624,21.8176397,89.406,89.33,1.50215392]
[1772614578824,21.8176397,89.406,89.33,5.79449596]
[1772614579025,10.067,89.392,89.33,5.79449596]
[1772614579718,21.8176397,89.406,89.33,5.79449596]
[1772614579918,4.29234204,89.4,89.33,4.29234204]
[1772614580119,10.068,89.384,89.33,4.29234204]
[1772614580624,21.80813888,89.399,89.33,5.62219178]
[1772614580927,0.02108003,89.41,89.35,4.29234204]
[1772614580928,10.066,89.403,89.35,4.29234204]
[1772614581130,0.02108003,89.41,89.35,4.29234204]
[1772614581431,22.33026286,89.406,89.35,4.29234204]
[1772614581626,22.33026286,89.406,89.333,1.32984974]
[1772614581931,10.068,89.387,89.333,1.32984974]
[1772614582127,22.33026286,89.406,89.333,1.32984974]
[1772614582831,10.069,89.379,89.32,4.29234204]
[1772614583329,10.071,89.363,89.301,10.077]
[1772614583634,22.33026286,89.369,89.274,1.72619893]
[1772614583823,156.616,89.388,89.265,271.97287885]
[1772614583824,22.33026286,89.349,89.266,10.081]
[1772614584025,22.33026286,89.329,89.24,4.29234204]
[1772614584226,22.33026286,89.329,89.241,1.69312615]
[1772614584728,22.33026286,89.323,89.242,1.77665174]
[1772614584926,22.33026286,89.309,89.222,1.77665174]
[1772614585128,22.33026286,89.309,89.25,4.29234204]
[1772614585533,22.33026286,89.309,89.25,6.16132464]
[1772614586328,22.33026286,89.309,89.23,4.29234204]
[1772614586529,22.33026286,89.309,89.228,0.75623429]
[1772614586726,22.33026286,89.309,89.173,13.21020404]
[1772614586727,22.57359921,89.282,89.21,4.29234204]
[1772614586932,22.57359921,89.282,89.2,4.29234204]
[1772614587237,22.57359921,89.282,89.204,0.84552666]
[1772614587434,22.56980071,89.309,89.221,0.84552666]
[1772614587636,26.86214275,89.29,89.221,0.84552666]
[1772614588226,26.86214275,89.29,89.22,4.29234204]
[1772614588227,26.86214275,89.29,89.2,4.29234204]
[1772614588638,22.44336308,89.277,89.2,4.29234204]
[1772614588838,22.44336308,89.277,89.2,5.55173411]
[1772614589636,22.4394176,89.269,89.19,4.29234204]
[1772614589836,22.4394176,89.269,89.21,4.29234204]
[1772614592443,22.44816054,89.267,89.192,1.34625091]
[1772614593242,22.44441979,89.259,89.193,10.09]
[1772614593435,22.44441979,89.259,89.21,4.29234204]
[1772614593643,22.44441979,89.279,89.21,4.29234204]
[1772614594837,22.43108729,89.277,89.21,4.29234204]
[1772614595945,22.42742454,89.298,89.211,1.82615543]
[1772614596352,22.42742454,89.298,89.221,2.12277441]
[1772614597644,4.29234204,89.31,89.241,2.2752016]
[1772614597947,22.33026286,89.317,89.26,4.29234204]
[1772614598148,22.33026286,89.337,89.29,4.29234204]
[1772614598948,22.33026286,89.337,89.28,4.29234204]
[1772614599542,22.33026286,89.337,89.28,14.37234204]
[1772614600146,22.33026286,89.337,89.29,10.079]
[1772614600455,22.33026286,89.369,89.29,4.29234204]
[1772614600653,22.33026286,89.359,89.29,4.29234204]
[1772614601350,22.33026286,89.357,89.281,2.85768245]
[1772614601948,22.33026286,89.376,89.31,4.29234204]
[1772614602250,22.33026286,89.376,89.31,7.60725955]
[1772614604053,22.33026286,89.376,89.31,17.68325955]
[1772614604255,22.33026286,89.376,89.31,10.076]
[1772614604753,22.6199312,89.396,89.33,10.074]
[1772614605057,22.6199312,89.396,89.32,2.00155403]
[1772614605254,22.6199312,89.396,89.33,4.29234204]
[1772614606856,22.6199312,89.396,89.331,2.1150262]
[1772614607057,0.02108003,89.41,89.331,2.1150262]
[1772614607255,0.02108003,89.41,89.351,2.11939622]
[1772614607552,0.02108003,89.41,89.371,2.16841212]
[1772614607757,22.61060761,89.455,89.39,4.29234204]
[1772614608856,22.61060761,89.455,89.393,10.067]
[1772614609059,23.26857298,89.476,89.394,0.93772363]
[1772614609254,23.26598395,89.474,89.395,11.00990169]
[1772614609456,23.26598395,89.469,89.39,4.29234204]
[1772614609953,23.26598395,89.449,89.37,4.29234204]
[1772614610152,23.26598395,89.449,89.371,1.22414397]
[1772614610354,23.26598395,89.449,89.39,4.29234204]
[1772614611151,33.32698395,89.449,89.39,4.29234204]
[1772614611353,23.14737184,89.448,89.371,1.22414397]
[1772614611660,10.063,89.432,89.37,4.29234204]
[1772614611854,23.14737184,89.431,89.3,4.29234204]
[1772614612060,23.14737184,89.429,89.35,4.29234204]
[1772614612256,22.96935381,89.417,89.35,4.29234204]
[1772614612555,22.96935381,89.417,89.351,1.67611403]
[1772614612961,22.96935381,89.417,89.34,4.29234204]
[1772614613354,22.96768436,89.392,89.32,4.29234204]
[1772614614059,22.96768436,89.392,89.321,10.075]
[1772614614657,23.63875349,89.39,89.32,4.29234204]
[1772614615666,23.63875349,89.39,89.321,0.51933571]
[1772614615963,27.93109553,89.39,89.32,4.29234204]
[1772614617062,23.4698522,89.386,89.32,4.29234204]
[1772614617260,23.4698522,89.386,89.301,0.51933571]
[1772614617767,10.071,89.355,89.3,4.29234204]
[1772614617965,20.125,89.436,89.3,4.29234204]
[1772614617966,23.46871944,89.354,89.3,4.29234204]
[1772614618168,23.39122483,89.433,89.301,1.09943695]
[1772614618461,23.39122483,89.394,89.32,4.29234204]
[1772614618664,23.39122483,89.394,89.33,4.29234204]
[1772614618862,23.39122483,89.393,89.33,4.29234204]
[1772614619268,23.39122483,89.393,89.35,4.29234204]
[1772614619662,23.39004862,89.431,89.35,4.29234204]
[1772614620264,23.32056538,89.421,89.352,10.072]
[1772614620970,23.32056538,89.41,89.34,10.073]
[1772614621170,23.32056538,89.41,89.35,4.29234204]
[1772614622264,23.36471649,89.399,89.31,4.29234204]
[1772614622466,23.36471649,89.379,89.291,1.32089902]
[1772614622967,23.36471649,89.375,89.31,4.29234204]
[1772614624467,23.36471649,89.375,89.31,14.36834204]
[1772614625768,23.29791742,89.373,89.31,4.29234204]
[1772614626667,23.30854344,89.393,89.33,4.29234204]
[1772614627262,23.30854344,89.393,89.3,4.29234204]
[1772614627665,23.30741224,89.36,89.3,4.29234204]
[1772614628270,23.29543624,89.357,89.284,1.63628877]
[1772614629165,23.29431698,89.345,89.263,1.7394063]
[1772614629365,23.29431698,89.339,89.263,1.7394063]
[1772614629568,23.29431698,89.303,89.24,4.29234204]
[1772614631373,23.29431698,89.303,89.251,10.083]
[1772614631767,23.30800501,89.323,89.26,4.29234204]
[1772614631976,23.30800501,89.323,89.26,6.11710313]
[1772614632274,23.30800501,89.323,89.27,10.081]
[1772614632471,23.30800501,89.323,89.26,6.11710313]
[1772614633168,23.07056897,89.321,89.26,4.29234204]
[1772614633868,23.07056897,89.316,89.26,4.29234204]
[1772614634369,23.06175897,89.339,89.28,4.29234204]
[1772614634575,23.06175897,89.339,89.28,4.29780968]
[1772614636177,23.06175897,89.339,89.3,4.29780968]
[1772614636372,23.64333616,89.358,89.3,4.29780968]
[1772614636670,23.64333616,89.399,89.32,4.29780968]
[1772614637178,23.64333616,89.394,89.32,4.29780968]
[1772614637572,4.29780968,89.42,89.301,1.33331886]
[1772614637573,23.64256863,89.392,89.312,10.076]
[1772614637876,23.64256863,89.392,89.301,1.33331886]
[1772614637877,23.64256863,89.392,89.32,4.29780968]
[1772614638280,24.19795256,89.374,89.32,4.29780968]
[1772614639471,24.19650689,89.394,89.32,4.29780968]
[1772614639672,24.19650689,89.391,89.32,4.29780968]
[1772614639876,24.19650689,89.391,89.301,1.33331886]
[1772614640077,24.10190095,89.364,89.303,10.077]
[1772614640273,24.10190095,89.364,89.301,1.33331886]
[1772614640475,24.10190095,89.399,89.32,4.29780968]
[1772614640669,34.16890095,89.395,89.322,0.65349443]
[1772614640872,24.10190095,89.394,89.322,0.65349443]
[1772614641073,24.10190095,89.394,89.32,4.29780968]
[1772614641271,24.10151115,89.37,89.301,0.65367177]
[1772614642076,24.10151115,89.37,89.312,10.076]
[1772614642077,34.17151115,89.37,89.312,10.076]
[1772614642278,24.10151115,89.37,89.301,0.65367177]
[1772614643070,113.6838794,89.638,89.311,0.28405306]
[1772614643071,24.31768066,89.424,89.311,0.28405306]
[1772614643270,24.31768066,89.424,89.38,4.29780968]
[1772614643581,24.31768066,89.422,89.37,4.29780968]
[1772614644276,24.10660883,89.442,89.371,0.73777647]
[1772614644475,24.10660883,89.442,89.351,0.73777647]
[1772614644674,24.10660883,89.44,89.36,4.29780968]
[1772614645377,24.10660883,89.44,89.38,4.29780968]
[1772614646377,24.10660883,89.44,89.37,4.29780968]
[1772614646783,24.10660883,89.44,89.359,10.071]
[1772614646982,24.10660883,89.44,89.371,10.07]
[1772614648485,24.10660883,89.44,89.37,4.29780968]
[1772614650686,24.25086407,89.438,89.37,4.29780968]
[1772614650882,24.25086407,89.429,89.327,0.65659212]
[1772614651086,24.25086407,89.409,89.33,4.29780968]
[1772614651485,24.25059888,89.406,89.331,10.074]
[1772614652290,4.29780968,89.45,89.308,0.65659212]
[1772614652291,24.17268251,89.389,89.31,4.29780968]
[1772614652588,24.17268251,89.389,89.255,20.23114201]
[1772614652589,143.19735277,89.581,89.442,626.08]
[1772614652882,7.56150771,89.665,89.57,8.59561936]
[1772614653086,65.57314353,89.744,89.557,156.319]
[1772614653087,27.56561476,89.744,89.69,4.29780968]
[1772614653278,10.93184173,89.747,89.7,4.29780968]
[1772614653487,34.45701846,89.786,89.73,4.29780968]
[1772614653683,10.34370304,89.817,89.76,4.29780968]
[1772614653885,79.31082974,89.843,89.761,10.026]
[1772614654185,155.58,89.983,89.83,4.29780968]
[1772614654392,128.29780968,89.97,89.84,4.29780968]
[1772614654576,128.29780968,89.97,89.78,155.93]
[1772614654577,124.0,89.97,89.841,20.87326256]
[1772614654777,155.556,89.997,89.842,20.87326256]
[1772614654980,155.645,89.946,89.777,4.16325495]
[1772614655184,155.576,89.986,89.777,4.16325495]
[1772614655383,10.005,89.949,89.83,11.6957114]
[1772614655584,5.0,90.0,89.817,3.67086599]
[1772614655585,16.6957114,90.0,89.817,3.67086599]
[1772614655786,155.58,89.984,89.817,3.67086599]
[1772614655981,5.0,90.0,89.817,3.67086599]
[1772614655982,155.643,89.947,89.82,11.6957114]
[1772614656285,29.83320928,89.942,89.83,11.6957114]
[1772614656481,29.83320928,89.942,89.73,11.6957114]
[1772614656686,29.83320928,89.942,89.83,11.6957114]
[1772614656984,29.83320928,89.942,89.86,11.6957114]
[1772614657189,29.83320928,89.942,89.84,11.6957114]
[1772614657383,29.87012797,89.934,89.708,200.47359318]
[1772614657685,5.0,90.0,89.85,23.06607353]
[1772614658082,5.0,90.0,89.84,11.6957114]
[1772614658083,155.579,89.984,89.84,11.6957114]
[1772614658282,11.6957114,89.93,89.792,23.06607353]
[1772614658484,10.012,89.889,89.767,23.06607353]
[1772614658786,155.61,89.966,89.767,23.06607353]
[1772614658787,11.6957114,89.93,89.767,23.06607353]
[1772614659084,11.6957114,89.93,89.721,178.66]
[1772614659085,11.6957114,89.95,89.82,11.6957114]
[1772614659287,155.641,89.948,89.821,23.06607353]
[1772614659492,124.0,89.97,89.84,11.6957114]
[1772614659689,22.09700484,89.969,89.841,23.06607353]
[1772614659889,22.09700484,89.937,89.82,11.6957114]
[1772614660080,22.09700484,89.907,89.722,23.06607353]
[1772614660286,22.09700484,89.899,89.79,11.6957114]
[1772614660484,22.09700484,89.892,89.791,23.06607353]
[1772614660692,22.09700484,89.889,89.79,34.76178493]
[1772614660889,22.09700484,89.889,89.77,11.6957114]
[1772614661088,22.09700484,89.86,89.75,11.6957114]
[1772614661296,22.09700484,89.83,89.71,23.06607353]
[1772614661488,22.09700484,89.83,89.72,11.6957114]
[1772614661684,22.09700484,89.807,89.721,23.06607353]
[1772614662186,22.09700484,89.807,89.73,11.6957114]
[1772614662393,22.09700484,89.847,89.77,11.6957114]
[1772614662793,22.09700484,89.847,89.751,23.06607353]
[1772614662993,5.58070304,89.829,89.73,11.6957114]
[1772614663294,22.09700484,89.814,89.71,11.6957114]
[1772614663590,22.09700484,89.8,89.71,11.6957114]
[1772614663794,10.024,89.779,89.71,11.6957114]
[1772614663992,22.09700484,89.804,89.711,23.06607353]
[1772614664189,22.09700484,89.803,89.711,23.06607353]
[1772614664389,22.09700484,89.787,89.69,11.6957114]
[1772614664589,22.09700484,89.723,89.642,207.13048339]
[1772614664789,22.09700484,89.764,89.66,11.6957114]
[1772614665393,22.09700484,89.755,89.68,11.6957114]
[1772614665894,22.09700484,89.768,89.681,23.06607353]
[1772614666091,22.09700484,89.768,89.67,11.6957114]
[1772614666293,22.09700484,89.768,89.671,23.06607353]
[1772614666593,22.09700484,89.829,89.721,23.06607353]
[1772614666795,22.09700484,89.822,89.74,23.06607353]
[1772614667097,22.09700484,89.82,89.72,11.6957114]
[1772614667496,22.09700484,89.82,89.721,23.06607353]
[1772614667896,22.09700484,89.862,89.76,11.6957114]
[1772614668492,27.01339608,89.861,89.761,25.91062976]
[1772614669199,27.01339608,89.853,89.771,25.91062976]
[1772614669700,27.01339608,89.853,89.78,11.6957114]
[1772614670102,27.01339608,89.839,89.734,25.91062976]
[1772614670595,27.01339608,89.829,89.734,25.91062976]
[1772614670898,27.01339608,89.829,89.75,11.6957114]
[1772614671096,27.01339608,89.829,89.74,11.6957114]
[1772614671398,27.01339608,89.829,89.741,25.91062976]
[1772614671795,27.01339608,89.826,89.72,11.6957114]
[1772614672000,27.01339608,89.819,89.72,11.6957114]
[1772614672592,27.01339608,89.815,89.713,25.91062976]
[1772614672796,27.01339608,89.811,89.713,25.91062976]
[1772614673002,27.01339608,89.811,89.721,25.91062976]
[1772614673801,11.6957114,89.82,89.682,269.7609367]
[1772614673802,27.01339608,89.801,89.7,11.6957114]
[1772614674199,27.01339608,89.795,89.7,11.6957114]
[1772614674401,27.01339608,89.795,89.701,25.91062976]
[1772614674794,27.01339608,89.795,89.71,11.6957114]
[1772614675102,27.01339608,89.792,89.701,25.91062976]
[1772614675599,20.78070499,89.792,89.701,25.91062976]
[1772614675799,20.78070499,89.792,89.71,11.6957114]
[1772614676102,20.78070499,89.792,89.71,37.60634116]
[1772614676396,5.58070304,89.79,89.71,37.60634116]
[1772614676597,11.6957114,89.81,89.71,37.60634116]
[1772614677001,10.023,89.789,89.69,11.6957114]
[1772614677198,5.58070304,89.8,89.69,11.6957114]
[1772614677394,11.6957114,89.79,89.69,11.6957114]
[1772614677595,155.795,89.859,89.69,11.6957114]
[1772614677596,27.01339608,89.877,89.691,25.91062976]
[1772614677796,27.01339608,89.909,89.78,11.6957114]
[1772614677995,27.01339608,89.886,89.754,25.91062976]
[1772614678300,27.01339608,89.859,89.754,25.91062976]
[1772614679001,27.01339608,89.859,89.761,25.91062976]
[1772614679594,10.017,89.841,89.761,25.91062976]
[1772614680001,27.01339608,89.859,89.761,25.91062976]
[1772614680304,27.01339608,89.859,89.78,11.6957114]
[1772614680504,27.01339608,89.919,89.821,25.91062976]
[1772614681000,27.01339608,89.919,89.831,25.91062976]
[1772614681607,10.012,89.885,89.831,25.91062976]
[1772614681805,10.012,89.885,89.803,25.91062976]
[1772614682005,27.01339608,89.924,89.803,25.91062976]
[1772614682308,27.01339608,89.896,89.791,25.91062976]
[1772614682499,27.01339608,89.921,89.811,25.91062976]
[1772614682705,27.01339608,89.921,89.831,25.91062976]
[1772614683008,155.589,89.978,89.81,11.6957114]
[1772614683009,27.01339608,89.919,89.81,11.6957114]
[1772614683303,27.01339608,89.919,89.81,37.60634116]
[1772614683502,27.01339608,89.866,89.783,25.91062976]
[1772614684611,10.014,89.865,89.79,11.6957114]
[1772614685006,10.014,89.865,89.791,25.91062976]
[1772614685408,5.58070304,89.854,89.791,25.91062976]
[1772614685911,11.6957114,89.88,89.791,25.91062976]
[1772614686311,27.01339608,89.889,89.791,25.91062976]
[1772614686514,27.01339608,89.88,89.791,25.91062976]
[1772614687109,10.014,89.869,89.791,25.91062976]
[1772614687711,10.015,89.855,89.791,25.91062976]
[1772614688013,11.6957114,89.84,89.733,25.91062976]
[1772614688212,27.01339608,89.853,89.741,25.91062976]
[1772614688213,10.018,89.83,89.741,25.91062976]
[1772614688409,10.018,89.83,89.682,269.7609367]
[1772614688410,27.01339608,89.853,89.761,25.91062976]
[1772614688809,5.58070304,89.845,89.761,25.91062976]
[1772614689210,27.01339608,89.853,89.761,25.91062976]
[1772614690315,5.58070304,89.834,89.761,25.91062976]
[1772614690812,5.58070304,89.824,89.761,25.91062976]
[1772614691017,27.01339608,89.853,89.74,11.6957114]
[1772614691326,155.696,89.916,89.709,25.91062976]
[1772614691327,27.01339608,89.806,89.709,25.91062976]
[1772614691914,27.01339608,89.799,89.7,11.6957114]
[1772614692218,27.01339608,89.799,89.701,25.91062976]
[1772614692514,27.01339608,89.789,89.701,25.91062976]
[1772614693108,27.01339608,89.788,89.701,25.91062976]
[1772614693416,27.01339608,89.788,89.703,25.91062976]
[1772614693612,27.01339608,89.788,89.705,25.91062976]
[1772614693808,27.01339608,89.779,89.706,11.33977883]
[1772614694015,27.01339608,89.779,89.683,25.91062976]
[1772614694321,10.024,89.776,89.685,25.91062976]
[1772614694515,27.01339608,89.769,89.686,21.983818]
[1772614694712,27.01339608,89.769,89.687,21.983818]
[1772614694913,27.01339608,89.769,89.689,25.91062976]
[1772614695215,11.6957114,89.79,89.698,25.91062976]
[1772614695418,27.01339608,89.789,89.7,9.11753721]
[1772614695619,27.01339608,89.787,89.701,31.10135521]
[1772614695819,5.58070304,89.77,89.702,21.983818]
[1772614696019,27.01339608,89.787,89.711,25.91062976]
[1772614696318,27.01339608,89.829,89.751,9.11753721]
[1772614696519,27.01339608,89.81,89.752,21.983818]
[1772614696716,27.01339608,89.849,89.758,9.11753721]
[1772614696918,5.58070304,89.824,89.774,9.56462592]
[1772614697114,27.01339608,89.849,89.804,9.56462592]
[1772614697313,27.01339608,89.849,89.822,0.00041089]
[1772614697511,27.01339608,89.849,89.804,12.75283456]
[1772614697716,27.01339608,89.849,89.791,12.75283456]
[1772614698235,4.44802556,89.848,89.806,12.75283456]
[1772614698421,4.44802556,89.848,89.805,12.75283456]
[1772614698719,4.44802556,89.848,89.796,12.75283456]
[1772614699020,28.52878252,89.847,89.771,18.366575]
[1772614699220,28.52878252,89.847,89.773,18.366575]
[1772614699414,10.018,89.833,89.773,18.366575]
[1772614699811,28.52878252,89.847,89.773,28.45120118]
[1772614700126,28.52878252,89.847,89.779,18.366575]
[1772614700321,28.52878252,89.847,89.78,18.366575]
[1772614700620,28.52878252,89.847,89.785,18.366575]
[1772614700824,28.52878252,89.847,89.78,18.366575]
[1772614701121,10.014,89.864,89.796,18.366575]
[1772614701317,29.55590974,89.869,89.784,18.366575]
[1772614701516,29.55590974,89.849,89.769,0.602575]
[1772614701721,10.02,89.812,89.755,28.15605994]
[1772614701920,29.55590974,89.809,89.71,17.58763297]
[1772614702117,29.55590974,89.809,89.71,28.15605994]
[1772614702313,29.55590974,89.789,89.71,28.15605994]
[1772614702517,29.55590974,89.789,89.685,28.15605994]
[1772614703317,10.025,89.767,89.685,28.15605994]
[1772614703714,10.026,89.756,89.685,28.15605994]
[1772614704119,9.08319508,89.756,89.685,28.15605994]
[1772614704821,10.028,89.746,89.685,28.15605994]
[1772614705020,29.55590974,89.779,89.685,28.15605994]
[1772614705323,10.027,89.751,89.685,28.15605994]
[1772614705518,29.55590974,89.779,89.69,17.58763297]
[1772614705729,29.55590974,89.779,89.691,28.15605994]
[1772614706319,10.028,89.745,89.691,28.15605994]
[1772614706522,29.55590974,89.779,89.691,28.15605994]
[1772614706922,10.028,89.74,89.691,28.15605994]
[1772614707229,29.55590974,89.779,89.691,28.15605994]
[1772614707426,10.027,89.753,89.691,28.15605994]
[1772614707723,10.027,89.753,89.682,269.7609367]
[1772614707724,29.55590974,89.811,89.717,28.15605994]
[1772614707928,29.55590974,89.811,89.7,17.58763297]
[1772614707929,29.55590974,89.811,89.721,28.15605994]
[1772614709518,10.023,89.786,89.723,28.15605994]
[1772614709722,29.55590974,89.811,89.725,28.15605994]
[1772614709920,29.55590974,89.807,89.727,28.15605994]
[1772614710129,29.55590974,89.807,89.73,10.029]
[1772614710323,29.55590974,89.807,89.732,28.15605994]
[1772614710628,10.021,89.806,89.734,28.15605994]
[1772614710829,10.021,89.806,89.74,17.58763297]
[1772614711126,10.021,89.806,89.742,28.15605994]
[1772614711334,10.021,89.806,89.743,18.9668011]
[1772614711530,10.021,89.806,89.744,18.9668011]
[1772614711722,10.021,89.806,89.745,18.9668011]
[1772614711924,10.021,89.806,89.746,18.96624452]
[1772614712226,10.021,89.806,89.747,18.96624452]
[1772614712425,10.021,89.806,89.748,18.96624452]
[1772614712623,29.55590974,89.833,89.73,27.220505]
[1772614712624,29.55590974,89.833,89.75,28.15605994]
[1772614712824,29.55590974,89.833,89.751,47.12230446]
[1772614713019,10.018,89.832,89.752,18.96624452]
[1772614713220,29.55590974,89.831,89.716,28.15605994]
[1772614713725,29.55590974,89.831,89.728,28.15605994]
[1772614714126,29.55590974,89.81,89.728,28.15605994]
[1772614715133,39.57590974,89.81,89.728,28.15605994]
[1772614715330,29.55590974,89.81,89.728,28.15605994]
[1772614717733,29.55590974,89.809,89.701,28.15605994]
[1772614718236,29.55590974,89.775,89.701,28.15605994]
[1772614718437,29.55590974,89.768,89.68,4.08869392]
[1772614718729,29.55590974,89.761,89.68,4.08869392]
[1772614718928,29.55590974,89.761,89.683,28.15605994]
[1772614719726,29.55590974,89.758,89.683,28.15605994]
[1772614720740,29.55590974,89.756,89.683,28.15605994]
[1772614721135,29.55590974,89.749,89.656,28.15605994]
[1772614721830,29.55590974,89.749,89.67,4.08869392]
[1772614722735,29.55590974,89.749,89.682,249.6469367]
[1772614723432,29.55590974,89.723,89.682,44.81017228]
[1772614723636,29.55590974,89.723,89.682,0.00017228]
[1772614724132,4.08869392,89.74,89.682,0.00017228]
[1772614724627,10.03,89.721,89.682,0.00017228]
[1772614724827,0.02116229,89.769,89.682,0.00017228]
[1772614724828,4.08869392,89.76,89.682,0.00017228]
[1772614725526,10.028,89.743,89.683,9.29167922]
[1772614725734,10.028,89.743,89.682,0.00017228]
[1772614726036,10.028,89.743,89.683,9.29727867]
[1772614726337,4.08869392,89.76,89.684,9.29727867]
[1772614726532,4.08869392,89.76,89.685,9.29727867]
[1772614726738,4.08869392,89.76,89.686,9.29727867]
[1772614726930,4.08869392,89.76,89.687,9.29727867]
[1772614727128,4.08869392,89.76,89.688,9.29727867]
[1772614727338,4.08869392,89.76,89.682,0.00017228]
[1772614727539,4.08869392,89.76,89.683,9.30735009]
[1772614727733,0.02116229,89.769,89.698,78.56141105]
[1772614727939,4.08869392,89.76,89.699,9.30735009]
[1772614728245,4.08869392,89.76,89.682,0.00017228]